fUST/lending_fUST_20250616
["ID","MTS","AMOUNT","RATE_DAILY","PERIOD"]
[366132137,1750079437832,-236.66221593,0.00018129,2]
[366132138,1750079437842,-500.0,0.00018229,2]
[366132139,1750079437852,-500.0,0.00018229,2]
[366132140,1750079437862,-500.0,0.00018229,2]
[366132141,1750079437871,-500.0,0.00018229,2]
[366132142,1750079437881,-500.0,0.00018229,2]
[366132143,1750079437892,-500.0,0.00018229,2]
[366132144,1750079437902,-500.0,0.00018229,2]
[366132145,1750079437912,-500.0,0.00018229,2]
[366132147,1750079437922,-500.0,0.00018229,2]
[366132149,1750079437932,-500.0,0.00018229,2]
[366132150,1750079437942,-25.77115511,0.00018232,2]
[366132151,1750079437954,-662.91124573,0.00018232,2]
[366132152,1750079437966,-2110.95365741,0.00018232,2]
[366132153,1750079437978,-751.96781573,0.00018232,2]
[366132154,1750079437990,-14458.70917411,0.00018232,2]
[366132155,1750079438000,-1000.0,0.00018314,2]
[366132156,1750079438010,-6458.320611,0.00018773,2]
[366132157,1750079438019,-310.0,0.00019178,2]
[366132158,1750079438029,-240.68059319,0.00019178,2]
[366132159,1750079438039,-460.0,0.00019178,2]
[366132160,1750079438049,-460.0,0.00019178,2]
[366132161,1750079438058,-460.0,0.00019178,2]
[366132162,1750079438068,-360.0,0.00019178,2]
[366132163,1750079438078,-410.09475286,0.00019178,2]
[366132164,1750079438089,-460.0,0.00019178,2]
[366132165,1750079438101,-401.35085523,0.00019178,2]
[366132166,1750079438111,-460.0,0.00019178,2]
[366132167,1750079438121,-460.0,0.00019178,2]
[366132168,1750079438131,-456.45576726,0.00019178,2]
[366132169,1750079438140,-460.0,0.00019178,2]
[366132170,1750079438151,-257.55728256,0.00019178,2]
[366132171,1750079438161,-469.31374328,0.00019178,2]
[366132172,1750079438171,-460.0,0.00019178,2]
[366132173,1750079438180,-460.0,0.00019178,2]
[366132174,1750079438190,-460.0,0.00019178,2]
[366132175,1750079438199,-272.5802503,0.00019178,2]
[366132176,1750079438209,-643.45,0.00019178,2]
[366132177,1750079438219,-907.45,0.00019178,2]
[366132178,1750079438229,-460.0,0.00019178,2]
[366132179,1750079438239,-676.27,0.00019178,2]
[366132180,1750079438249,-360.0,0.00019178,2]
[366132181,1750079438258,-460.0,0.00019178,2]
[366132182,1750079438267,-460.0,0.00019178,2]
[366132183,1750079438277,-460.0,0.00019178,2]
[366132184,1750079438287,-310.0,0.00019178,2]
[366132185,1750079438298,-460.0,0.00019178,2]
[366132186,1750079438308,-460.0,0.00019178,2]
[366132187,1750079438317,-1040.2,0.00019178,2]
[366132188,1750079438327,-944.29,0.00019178,2]
[366132189,1750079438337,-460.0,0.00019178,2]
[366132190,1750079438346,-460.0,0.00019178,2]
[366132191,1750079438356,-460.0,0.00019178,2]
[366132192,1750079438365,-228.48360158,0.00019178,2]
[366132193,1750079438375,-460.0,0.00019178,2]
[366132194,1750079438384,-420.0,0.00019178,2]
[366132195,1750079438394,-460.0,0.00019178,2]
[366132196,1750079438404,-460.0,0.00019178,2]
[366132197,1750079438413,-1450.56,0.00019178,2]
[366132198,1750079438423,-460.0,0.00019178,2]
[366132199,1750079438432,-460.0,0.00019178,2]
[366132200,1750079438442,-460.0,0.00019178,2]
[366132201,1750079438452,-460.0,0.00019178,2]
[366132202,1750079438462,-460.0,0.00019178,2]
[366132203,1750079438472,-460.0,0.00019178,2]
[366132204,1750079438482,-460.0,0.00019178,2]
[366132205,1750079438491,-460.0,0.00019178,2]
[366132206,1750079438501,-460.0,0.00019178,2]
[366132207,1750079438511,-460.0,0.00019178,2]
[366132208,1750079438521,-1534.88,0.00019178,2]
[366132209,1750079438530,-460.0,0.00019178,2]
[366132210,1750079438542,-460.0,0.00019178,2]
[366132211,1750079438552,-460.0,0.00019178,2]
[366132212,1750079438562,-460.0,0.00019178,2]
[366132213,1750079438572,-460.0,0.00019178,2]
[366132214,1750079438582,-809.29,0.00019178,2]
[366132215,1750079438591,-460.0,0.00019178,2]
[366132216,1750079438601,-460.0,0.00019178,2]
[366132217,1750079438611,-460.0,0.00019178,2]
[366132218,1750079438622,-460.0,0.00019178,2]
[366132219,1750079438631,-808.39,0.00019178,2]
[366132220,1750079438642,-460.0,0.00019178,2]
[366132221,1750079438652,-151.0,0.00019178,2]
[366132222,1750079438663,-460.0,0.00019178,2]
[366132223,1750079438675,-185.6661989,0.00019178,2]
[366132224,1750079438685,-460.0,0.00019178,2]
[366132225,1750079438695,-460.0,0.00019178,2]
[366132226,1750079438706,-1052.34030405,0.00019351,2]
[366132227,1750079438717,-1348.34,0.00019451,4]
[366132228,1750079438727,-460.0,0.00019451,4]
[366132229,1750079438737,-460.0,0.00019451,4]
[366132230,1750079438748,-400.0,0.00019451,4]
[366132231,1750079438759,-460.0,0.00019452,4]
[366132232,1750079438769,-296.9343949,0.00019452,4]
[366132233,1750079438779,-460.0,0.00019452,4]
[366132234,1750079438792,-460.0,0.00019452,4]
[366132235,1750079438801,-460.0,0.00019452,2]
[366132236,1750079438811,-460.0,0.00019452,4]
[366132237,1750079438822,-460.0,0.00019452,4]
[366132238,1750079438832,-460.0,0.00019452,4]
[366132239,1750079438842,-460.0,0.00019452,4]
[366132240,1750079438852,-643.45,0.00019452,4]
[366132241,1750079438862,-907.45,0.00019452,4]
[366132242,1750079438872,-676.27,0.00019452,4]
[366132243,1750079438883,-460.0,0.00019452,4]
[366132244,1750079438893,-460.0,0.00019452,4]
[366132245,1750079438903,-460.0,0.00019452,4]
[366132246,1750079438913,-460.0,0.00019452,4]
[366132247,1750079438923,-1040.2,0.00019452,4]
[366132248,1750079438933,-944.29,0.00019452,4]
[366132249,1750079438943,-460.0,0.00019452,4]
[366132250,1750079438954,-460.0,0.00019452,4]
[366132251,1750079438964,-460.0,0.00019452,4]
[366132252,1750079438974,-460.0,0.00019452,4]
[366132253,1750079438984,-1450.56,0.00019452,4]
[366132254,1750079438994,-460.0,0.00019452,4]
[366132255,1750079439003,-460.0,0.00019452,4]
[366132256,1750079439013,-460.0,0.00019452,4]
[366132257,1750079439023,-460.0,0.00019452,4]
[366132258,1750079439035,-460.0,0.00019452,4]
[366132259,1750079439045,-460.0,0.00019452,4]
[366132260,1750079439054,-460.0,0.00019452,4]
[366132261,1750079439064,-1534.88,0.00019452,4]
[366132262,1750079439074,-165.56079701,0.00019452,4]
[366132263,1750079439084,-460.0,0.00019452,4]
[366132264,1750079439093,-460.0,0.00019452,4]
[366132265,1750079439103,-809.29,0.00019452,4]
[366132266,1750079439113,-337.08012644,0.00019452,4]
[366132267,1750079439123,-460.0,0.00019452,4]
[366132268,1750079439132,-460.0,0.00019452,4]
[366132269,1750079439142,-808.39,0.00019452,4]
[366132270,1750079439153,-460.0,0.00019452,4]
[366132271,1750079439163,-460.0,0.00019452,4]
[366132272,1750079439173,-460.0,0.00019452,4]
[366132273,1750079439183,-4203.0,0.000195,2]
[366132274,1750079439192,-500.0,0.00019516,2]
[366132275,1750079439203,-500.0,0.00019516,2]
[366132276,1750079439213,-1348.34,0.00019725,4]
[366132277,1750079439224,-460.0,0.00019725,4]
[366132278,1750079439234,-460.0,0.00019725,4]
[366132279,1750079439244,-460.0,0.00019726,4]
[366132280,1750079439254,-460.0,0.00019726,4]
[366132281,1750079439264,-460.0,0.00019726,2]
[366132282,1750079439274,-460.0,0.00019726,4]
[366132283,1750079439285,-460.0,0.00019726,4]
[366132284,1750079439295,-155.22564691,0.00019726,4]
[366132285,1750079439305,-460.0,0.00019726,4]
[366132286,1750079439316,-643.45,0.00019726,4]
[366132287,1750079439326,-907.45,0.00019726,4]
[366132288,1750079439336,-676.27,0.00019726,4]
[366132289,1750079439347,-460.0,0.00019726,4]
[366132290,1750079439357,-460.0,0.00019726,4]
[366132291,1750079439367,-1040.2,0.00019726,4]
[366132292,1750079439377,-944.29,0.00019726,4]
[366132293,1750079439387,-460.0,0.00019726,4]
[366132294,1750079439398,-460.0,0.00019726,4]
[366132296,1750079439408,-1450.56,0.00019726,4]
[366132297,1750079439418,-460.0,0.00019726,4]
[366132298,1750079439428,-460.0,0.00019726,4]
[366132299,1750079439438,-360.0,0.00019726,4]
[366132300,1750079439447,-460.0,0.00019726,4]
[366132301,1750079439457,-1534.88,0.00019726,4]
[366132302,1750079439467,-460.0,0.00019726,4]
[366132303,1750079439477,-460.0,0.00019726,4]
[366132304,1750079439488,-809.29,0.00019726,4]
[366132305,1750079439497,-460.0,0.00019726,4]
[366132306,1750079439507,-460.0,0.00019726,4]
[366132307,1750079439518,-808.39,0.00019726,4]
[366132308,1750079439528,-460.0,0.00019726,4]
[366132309,1750079439540,-460.0,0.00019726,4]
[366132310,1750079439550,-460.0,0.00019726,4]
[366132311,1750079439560,-500.0,0.00019747,2]
[366132312,1750079439573,-183.35058372,0.00019747,2]
[366132313,1750079439583,-500.0,0.00019865,2]
[366132314,1750079439593,-420.0,0.00019885,2]
[366132315,1750079439603,-503.23811144,0.00019916,2]
[366132316,1750079439613,-579.53,0.00019989,3]
[366132317,1750079439622,-1348.34,0.00019999,4]
[366132318,1750079439632,-460.0,0.00019999,4]
[366132319,1750079439641,-460.0,0.00019999,4]
[366132320,1750079439651,-460.0,0.0002,4]
[366132322,1750079439664,-460.0,0.0002,2]
[366132323,1750079439674,-460.0,0.0002,4]
[366132324,1750079439684,-460.0,0.0002,4]
[366132325,1750079439693,-460.0,0.0002,4]
[366132326,1750079439706,-643.45,0.0002,4]
[366132327,1750079439715,-907.45,0.0002,4]
[366132328,1750079439725,-676.27,0.0002,4]
[366132329,1750079439735,-460.0,0.0002,4]
[366132330,1750079439748,-460.0,0.0002,4]
[366132331,1750079439758,-1040.2,0.0002,4]
[366132332,1750079439768,-944.29,0.0002,4]
[366132333,1750079439778,-460.0,0.0002,4]
[366132334,1750079439789,-460.0,0.0002,4]
[366132335,1750079439798,-1450.56,0.0002,4]
[366132336,1750079439808,-460.0,0.0002,4]
[366132337,1750079439818,-460.0,0.0002,4]
[366132338,1750079439828,-460.0,0.0002,4]
[366132339,1750079439838,-1534.88,0.0002,4]
[366132340,1750079439847,-460.0,0.0002,4]
[366132341,1750079439857,-460.0,0.0002,4]
[366132342,1750079439867,-809.29,0.0002,4]
[366132343,1750079439877,-460.0,0.0002,4]
[366132344,1750079439886,-239.86,0.0002,4]
[366132345,1750079439896,-808.39,0.0002,4]
[366132346,1750079439906,-460.0,0.0002,4]
[366132347,1750079439916,-460.0,0.0002,4]
[366132348,1750079439926,-460.0,0.0002,4]
[366132349,1750079439936,-1000.0,0.00020064,2]
[366132350,1750079439946,-160.0,0.00020101,2]
[366132351,1750079439956,-160.0,0.00020102,2]
[366132353,1750079439966,-845.47092152,0.00020164,2]
[366132355,1750079439975,-424.54874296,0.00020164,2]
[366132357,1750079439986,-213.36025772,0.00020165,2]
[366132359,1750079439995,-835.67987521,0.00020165,2]
[366132361,1750079440005,-160.0,0.00020165,2]
[366132362,1750079440015,-160.0,0.00020165,2]
[366132363,1750079440025,-160.0,0.00020165,2]
[366132364,1750079440035,-160.0,0.00020165,2]
[366132365,1750079440045,-12537.89035583,0.00020165,2]
[366132366,1750079440054,-229.90125484,0.00020165,2]
[366132367,1750079440064,-1052.34030401,0.00020263,2]
[366132368,1750079440074,-460.0,0.00020273,4]
[366132369,1750079440083,-460.0,0.00020273,2]
[366132370,1750079440093,-460.0,0.00020273,4]
[366132371,1750079440103,-460.0,0.00020273,4]
[366132372,1750079440112,-460.0,0.00020273,4]
[366132373,1750079440122,-643.45,0.00020273,4]
[366132374,1750079440144,-907.45,0.00020273,4]
[366132375,1750079440158,-676.27,0.00020273,4]
[366132376,1750079440168,-1348.34,0.00020273,4]
[366132377,1750079440179,-460.0,0.00020273,4]
[366132378,1750079440189,-1040.2,0.00020273,4]
[366132379,1750079440199,-460.0,0.00020273,4]
[366132380,1750079440210,-944.29,0.00020273,4]
[366132381,1750079440220,-460.0,0.00020273,4]
[366132382,1750079440230,-460.0,0.00020273,4]
[366132383,1750079440240,-460.0,0.00020273,4]
[366132384,1750079440251,-460.0,0.00020273,4]
[366132385,1750079440260,-1450.56,0.00020273,4]
[366132386,1750079440270,-460.0,0.00020273,4]
[366132387,1750079440279,-460.0,0.00020273,4]
[366132388,1750079440289,-460.0,0.00020273,4]
[366132389,1750079440300,-1534.88,0.00020273,4]
[366132390,1750079440310,-460.0,0.00020273,4]
[366132391,1750079440320,-460.0,0.00020273,4]
[366132392,1750079440330,-809.29,0.00020273,4]
[366132393,1750079440340,-460.0,0.00020273,4]
[366132394,1750079440350,-808.39,0.00020273,4]
[366132395,1750079440360,-460.0,0.00020273,4]
[366132396,1750079440370,-460.0,0.00020273,4]
[366132397,1750079440380,-460.0,0.00020273,4]
[366132398,1750079440390,-175.144,0.00020513,2]
[366132399,1750079440400,-460.0,0.00020547,4]
[366132400,1750079440410,-460.0,0.00020547,2]
[366132401,1750079440420,-275.38,0.00020547,4]
[366132402,1750079440430,-320.0,0.00020547,4]
[366132403,1750079440440,-500.0,0.00020547,2]
[366132404,1750079440451,-460.0,0.00020547,4]
[366132405,1750079440460,-643.45,0.00020547,4]
[366132406,1750079440471,-907.45,0.00020547,4]
[366132407,1750079440481,-676.27,0.00020547,4]
[366132408,1750079440492,-1348.34,0.00020547,4]
[366132409,1750079440502,-460.0,0.00020547,4]
[366132410,1750079440513,-1040.2,0.00020547,4]
[366132411,1750079440523,-457.53719606,0.00020547,4]
[366132412,1750079440533,-944.29,0.00020547,4]
[366132413,1750079440544,-460.0,0.00020547,4]
[366132414,1750079440554,-300.05895449,0.00020547,4]
[366132415,1750079440566,-460.0,0.00020547,4]
[366132416,1750079440576,-460.0,0.00020547,4]
[366132417,1750079440587,-1450.56,0.00020547,4]
[366132418,1750079440597,-460.0,0.00020547,4]
[366132419,1750079440608,-460.0,0.00020547,4]
[366132420,1750079440618,-460.0,0.00020547,4]
[366132421,1750079440628,-1534.88,0.00020547,4]
[366132422,1750079440638,-460.0,0.00020547,4]
[366132423,1750079440648,-460.0,0.00020547,4]
[366132424,1750079440658,-809.29,0.00020547,4]
[366132425,1750079440669,-460.0,0.00020547,4]
[366132426,1750079440680,-808.39,0.00020547,4]
[366132427,1750079440690,-460.0,0.00020547,4]
[366132428,1750079440700,-460.0,0.00020547,4]
[366132429,1750079440711,-447.69,0.00020547,4]
[366132430,1750079440721,-1096.98801157,0.00020612,2]
[366132431,1750079440731,-1297.61,0.00020717,2]
[366132432,1750079440741,-460.35,0.00020821,4]
[366132433,1750079440760,-460.0,0.00020821,2]
[366132434,1750079440770,-593.22086883,0.00020821,4]
[366132435,1750079440780,-643.45,0.00020821,4]
[366132436,1750079440790,-907.45,0.00020821,4]
[366132437,1750079440801,-676.27,0.00020821,4]
[366132438,1750079440810,-1348.34,0.00020821,4]
[366132439,1750079440820,-406.01167809,0.00020821,4]
[366132440,1750079440830,-1040.2,0.00020821,4]
[366132441,1750079440839,-944.29,0.00020821,4]
[366132442,1750079440850,-460.0,0.00020821,4]
[366132443,1750079440859,-460.0,0.00020821,4]
[366132444,1750079440869,-460.0,0.00020821,4]
[366132445,1750079440879,-1450.56,0.00020821,4]
[366132446,1750079440888,-460.0,0.00020821,4]
[366132447,1750079441058,-460.0,0.00020821,4]
[366132448,1750079441088,-460.0,0.00020821,4]
[366132449,1750079441098,-1534.88,0.00020821,4]
[366132450,1750079441109,-460.0,0.00020821,4]
[366132451,1750079441119,-498.23450443,0.00020821,4]
[366132452,1750079441129,-809.29,0.00020821,4]
[366132453,1750079441139,-460.0,0.00020821,4]
[366132454,1750079441149,-808.39,0.00020821,4]
[366132455,1750079441159,-460.0,0.00020821,4]
[366132456,1750079441168,-460.0,0.00020821,4]
[366132457,1750079441178,-460.0,0.00021095,2]
[366132458,1750079441188,-500.0,0.00021095,3]
[366132459,1750079441198,-643.45,0.00021095,4]
[366132460,1750079441208,-907.45,0.00021095,4]
[366132461,1750079441218,-676.27,0.00021095,4]
[366132462,1750079441228,-1348.34,0.00021095,4]
[366132463,1750079441239,-1040.2,0.00021095,4]
[366132464,1750079441249,-944.29,0.00021095,4]
[366132465,1750079441260,-220.65,0.00021095,4]
[366132466,1750079441270,-460.0,0.00021095,4]
[366132467,1750079441281,-460.0,0.00021095,4]
[366132468,1750079441292,-1450.56,0.00021095,4]
[366132469,1750079441303,-460.0,0.00021095,4]
[366132470,1750079441313,-460.0,0.00021095,4]
[366132471,1750079441323,-460.0,0.00021095,4]
[366132472,1750079441336,-1534.88,0.00021095,4]
[366132473,1750079441346,-460.0,0.00021095,4]
[366132474,1750079441356,-809.29,0.00021095,4]
[366132475,1750079441367,-460.0,0.00021095,4]
[366132476,1750079441378,-808.39,0.00021095,4]
[366132477,1750079441389,-460.0,0.00021095,4]
[366132478,1750079441399,-460.0,0.00021095,4]
[366132479,1750079441410,-504.40760862,0.0002117,2]
[366132480,1750079441420,-500.0,0.0002117,2]
[366132481,1750079441431,-1052.34030401,0.00021176,2]
[366132482,1750079441442,-1159.06,0.00021359,3]
[366132483,1750079441453,-460.0,0.00021369,2]
[366132484,1750079441463,-643.45,0.00021369,4]
[366132485,1750079441474,-907.45,0.00021369,4]
[366132486,1750079441484,-676.27,0.00021369,4]
[366132487,1750079441495,-1348.34,0.00021369,4]
[366132488,1750079441505,-1040.2,0.00021369,4]
[366132489,1750079441515,-944.29,0.00021369,4]
[366132490,1750079441525,-460.0,0.00021369,4]
[366132491,1750079441535,-460.0,0.00021369,4]
[366132492,1750079441548,-1450.56,0.00021369,4]
[366132493,1750079441558,-460.0,0.00021369,4]
[366132494,1750079441568,-460.0,0.00021369,4]
[366132495,1750079441578,-460.0,0.00021369,4]
[366132496,1750079441588,-1534.88,0.00021369,4]
[366132497,1750079441599,-460.0,0.00021369,4]
[366132498,1750079441611,-809.29,0.00021369,4]
[366132499,1750079441621,-460.0,0.00021369,4]
[366132500,1750079441632,-808.39,0.00021369,4]
[366132501,1750079441642,-340.0,0.00021369,4]
[366132502,1750079441652,-460.0,0.00021369,4]
[366132503,1750079441662,-406.0,0.00021373,2]
[366132504,1750079441675,-159.769475,0.00021404,2]
[366132505,1750079441685,-5000.0,0.00021438,2]
[366132506,1750079441695,-207.4,0.00021438,2]
[366132507,1750079441705,-608.62004071,0.00021438,2]
[366132508,1750079441714,-160.0,0.00021471,2]
[366132509,1750079441724,-500.0,0.00021533,2]
[366132510,1750079441734,-6981.2609,0.00021542,2]
[366132511,1750079441745,-15420.05404365,0.00021543,2]
[366132512,1750079441755,-500.0,0.0002156,2]
[366132513,1750079441765,-500.0,0.0002156,2]
[366132514,1750079441774,-500.0,0.0002156,2]
[366132515,1750079441784,-152.91354487,0.0002156,2]
[366132516,1750079441795,-509.52386993,0.0002156,2]
[366132517,1750079441805,-600.0,0.0002156,2]
[366132518,1750079441815,-500.0,0.0002156,2]
[366132519,1750079441824,-500.91501384,0.0002156,2]
[366132520,1750079441834,-243.40682598,0.0002156,2]
[366132521,1750079441844,-503.02473466,0.00021617,2]
[366132522,1750079441854,-501.06245016,0.00021617,2]
[366132523,1750079441863,-500.0,0.00021617,2]
[366132524,1750079441872,-460.0,0.00021643,2]
[366132525,1750079441882,-500.0,0.00021643,4]
[366132526,1750079441892,-643.45,0.00021643,4]
[366132527,1750079441902,-907.45,0.00021643,4]
[366132528,1750079441911,-676.27,0.00021643,4]
[366132529,1750079441922,-1348.34,0.00021643,4]
[366132530,1750079441931,-1040.2,0.00021643,4]
[366132531,1750079441940,-944.29,0.00021643,4]
[366132532,1750079441950,-460.0,0.00021643,4]
[366132533,1750079441959,-460.0,0.00021643,4]
[366132534,1750079441969,-1450.56,0.00021643,4]
[366132535,1750079441979,-460.0,0.00021643,4]
[366132536,1750079441988,-460.0,0.00021643,4]
[366132537,1750079441998,-460.0,0.00021643,4]
[366132538,1750079442007,-1534.88,0.00021643,4]
[366132539,1750079442017,-460.0,0.00021643,4]
[366132540,1750079442026,-809.29,0.00021643,4]
[366132541,1750079442036,-539.84970361,0.00021643,4]
[366132542,1750079442046,-808.39,0.00021643,4]
[366132543,1750079442056,-460.0,0.00021643,4]
[366132544,1750079442066,-500.0,0.00021658,2]
[366132545,1750079442075,-500.0,0.00021658,2]
[366132546,1750079442085,-587.0,0.00021692,2]
[366132547,1750079442095,-2595.22,0.00021703,2]
[366132548,1750079442104,-310.23252343,0.00021718,2]
[366132549,1750079442114,-500.0,0.00021764,2]
[366132550,1750079442125,-500.0,0.00021878,2]
[366132551,1750079442135,-460.0,0.00021917,2]
[366132552,1750079442145,-500.0,0.00021917,2]
[366132553,1750079442155,-643.45,0.00021917,4]
[366132554,1750079442166,-907.45,0.00021917,4]
[366132555,1750079442176,-676.27,0.00021917,4]
[366132556,1750079442186,-1348.34,0.00021917,4]
[366132557,1750079442196,-1040.2,0.00021917,4]
[366132558,1750079442206,-944.29,0.00021917,4]
[366132559,1750079442216,-460.0,0.00021917,4]
[366132560,1750079442227,-460.0,0.00021917,4]
[366132561,1750079442238,-1450.56,0.00021917,4]
[366132562,1750079442250,-460.0,0.00021917,4]
[366132563,1750079442261,-460.0,0.00021917,4]
[366132564,1750079442271,-460.0,0.00021917,4]
[366132565,1750079442281,-1534.88,0.00021917,4]
[366132566,1750079442291,-809.29,0.00021917,4]
[366132568,1750079442301,-808.39,0.00021917,4]
[366132570,1750079442311,-460.0,0.00021917,4]
[366132571,1750079442321,-500.0,0.00021918,2]
[366132572,1750079442331,-500.0,0.00021944,2]
[366132574,1750079442340,-500.79031725,0.00021944,2]
[366132575,1750079442350,-5000.0,0.00021986,2]
[366132576,1750079442360,-1052.34030401,0.00022088,2]
[366132577,1750079442370,-460.0,0.00022191,2]
[366132578,1750079442379,-500.0,0.00022191,5]
[366132579,1750079442389,-643.45,0.00022191,4]
[366132580,1750079442400,-907.45,0.00022191,4]
[366132581,1750079442410,-676.27,0.00022191,4]
[366132582,1750079442420,-1348.34,0.00022191,4]
[366132583,1750079442430,-1040.2,0.00022191,4]
[366132584,1750079442440,-944.29,0.00022191,4]
[366132587,1750079442451,-460.0,0.00022191,4]
[366132589,1750079442462,-460.0,0.00022191,4]
[366132591,1750079442472,-1450.56,0.00022191,4]
[366132593,1750079442482,-460.0,0.00022191,4]
[366132594,1750079442492,-460.0,0.00022191,4]
[366132595,1750079442501,-460.0,0.00022191,4]
[366132596,1750079442511,-1534.88,0.00022191,4]
[366132597,1750079442520,-809.29,0.00022191,4]
[366132598,1750079442531,-808.39,0.00022191,4]
[366132599,1750079442542,-460.0,0.00022191,4]
[366132600,1750079442552,-152.736,0.00022195,2]
[366132602,1750079442562,-249.539,0.00022195,2]
[366132604,1750079442572,-250.0,0.00022195,2]
[366132606,1750079442581,-258.513,0.00022195,2]
[366132609,1750079442591,-215.904,0.00022195,2]
[366132611,1750079442600,-964.0,0.00022195,2]
[366132613,1750079442611,-2160.0,0.00022195,2]
[366132615,1750079442622,-653.0,0.00022195,2]
[366132617,1750079442632,-1000.0,0.00022426,2]
[366132619,1750079442642,-460.0,0.00022465,2]
[366132622,1750079442653,-643.45,0.00022465,4]
[366132623,1750079442664,-907.45,0.00022465,4]
[366132626,1750079442678,-676.27,0.00022465,4]
[366132628,1750079442689,-1348.34,0.00022465,4]
[366132630,1750079442699,-1040.2,0.00022465,4]
[366132632,1750079442711,-944.29,0.00022465,4]
[366132634,1750079442722,-460.0,0.00022465,4]
[366132636,1750079442732,-460.0,0.00022465,4]
[366132638,1750079442742,-1450.56,0.00022465,4]
[366132640,1750079442753,-460.0,0.00022465,4]
[366132642,1750079442764,-370.78758323,0.00022465,4]
[366132644,1750079442773,-460.0,0.00022465,4]
[366132645,1750079442783,-1534.88,0.00022465,4]
[366132647,1750079442795,-809.29,0.00022465,4]
[366132648,1750079442804,-808.39,0.00022465,4]
[366132651,1750079442814,-460.0,0.00022465,4]
[366132653,1750079442824,-5000.0,0.00022534,2]
[366132655,1750079442834,-479.0,0.0002254,2]
[366132656,1750079442844,-3892.83,0.0002269,2]
[366132657,1750079442854,-417.09440415,0.00022739,2]
[366132659,1750079442863,-643.45,0.00022739,4]
[366132661,1750079442872,-907.45,0.00022739,4]
[366132662,1750079442883,-676.27,0.00022739,4]
[366132664,1750079442892,-1348.34,0.00022739,4]
[366132666,1750079442902,-1040.2,0.00022739,4]
[366132667,1750079442911,-944.29,0.00022739,4]
[366132669,1750079442921,-460.0,0.00022739,4]
[366132671,1750079442931,-460.0,0.00022739,4]
[366132672,1750079442940,-1450.56,0.00022739,4]
[366132674,1750079442950,-460.0,0.00022739,4]
[366132676,1750079442960,-460.0,0.00022739,4]
[366132679,1750079442970,-1534.88,0.00022739,4]
[366132681,1750079442980,-809.29,0.00022739,4]
[366132682,1750079442990,-808.39,0.00022739,4]
[366132684,1750079443000,-460.0,0.00022739,4]
[366132686,1750079443010,-215.0738,0.00022807,2]
[366132688,1750079443019,-160.0,0.00022841,2]
[366132689,1750079443031,-162.85516593,0.00022904,2]
[366132691,1750079443042,-1682.2750524,0.00022916,2]
[366132693,1750079443052,-1037.42909163,0.0002299,2]
[366132695,1750079443062,-3000.0,0.00023,2]
[366132696,1750079443072,-1000.0,0.00023,23]
[366132698,1750079443081,-151.0,0.00023,5]
[366132700,1750079443091,-1052.34030401,0.00023,2]